fUST/lending_fUST_20250707
["ID","MTS","AMOUNT","RATE_DAILY","PERIOD"]
[370014252,1751832645373,-620.0,0.00019721,2]
[370014253,1751832645383,-250.0,0.00019731,2]
[370014254,1751832645392,-2500.0,0.00019769,2]
[370014255,1751832645403,-274.592,0.00019809,2]
[370014256,1751832645413,-250.0,0.00019814,2]
[370014257,1751832645423,-1496.88050469,0.00019831,2]
[370014258,1751832645444,-515.95806706,0.00019831,2]
[370014259,1751832645456,-3652.97816832,0.00019831,2]
[370014260,1751832645703,-460.0,0.0001767,2]
[370014261,1751832645715,-852.54,0.00019861,2]
[370014262,1751832645724,-460.0,0.00019862,2]
[370014263,1751832645734,-493.65,0.00019862,2]
[370014264,1751832645744,-460.0,0.00019862,2]
[370014265,1751832645754,-1607.05,0.00019862,2]
[370014266,1751832645763,-1172.36,0.00019862,2]
[370014267,1751832645773,-460.0,0.00019862,2]
[370014268,1751832645783,-15.1,0.00019862,2]
[370014270,1751832645887,-460.0,0.00017944,2]
[370014271,1751832645897,-460.0,0.00018218,2]
[370014273,1751832645906,-460.0,0.00018492,2]
[370014274,1751832645915,-460.0,0.00018766,2]
[370014275,1751832645925,-460.0,0.0001904,2]
[370014276,1751832645934,-460.0,0.00019314,2]
[370014277,1751832645944,-460.0,0.00019588,2]
[370014278,1751832645954,-447.01495075,0.00019862,2]
[370014280,1751832645965,-276.13256494,0.00019862,2]
[370014281,1751832645980,-707.09248431,0.00019862,2]
[370014282,1751832645991,-245.2497049,0.00019862,2]
[370014284,1751832646544,-7604.36113297,0.00017577,2]
[370014285,1751832646555,-1218.8202951,0.00019862,2]
[370014286,1751832646567,-1056.39,0.00019862,2]
[370014287,1751832646577,-1551.27,0.00019862,2]
[370014288,1751832646589,-889.13,0.00019862,2]
[370014289,1751832646599,-460.0,0.00019862,2]
[370014290,1751832646608,-460.0,0.00019862,2]
[370014291,1751832646618,-583.77,0.00019862,2]
[370014292,1751832646627,-460.0,0.00019862,2]
[370014293,1751832646637,-794.24,0.00019862,2]
[370014294,1751832646646,-460.0,0.00019862,2]
[370014295,1751832646655,-460.0,0.00019863,2]
[370014296,1751832646665,-460.0,0.00019863,2]
[370014297,1751832646674,-2387.86,0.00019863,2]
[370014298,1751832646684,-460.0,0.00019863,2]
[370014299,1751832646694,-668.7,0.00019863,2]
[370014300,1751832646705,-589.98,0.00019863,2]
[370014301,1751832646715,-764.76,0.00019863,2]
[370014302,1751832646724,-680.74,0.00019863,2]
[370014303,1751832646735,-366.6379324,0.00019863,2]
[370014304,1751832646745,-179.889,0.00019877,2]
[370014305,1751832646754,-201.829,0.00019877,2]
[370014306,1751832646764,-214.063,0.00019877,2]
[370014307,1751832646774,-248.989,0.00019877,2]
[370014308,1751832646785,-249.539,0.00019877,2]
[370014309,1751832646796,-150.318,0.00019877,2]
[370014310,1751832646806,-259.376,0.00019877,2]
[370014311,1751832646816,-217.056,0.00019877,2]
[370014312,1751832646825,-967.0,0.00019877,2]
[370014313,1751832646836,-151.0,0.00019912,2]
[370014314,1751832646846,-1459.32106257,0.00019912,2]
[370014315,1751832646858,-501.16532693,0.00019912,2]
[370014316,1751832646867,-168.0,0.00019954,2]
[370014317,1751832646876,-5000.0,0.00019961,2]
[370014318,1751832646886,-161.132513,0.00019984,2]
[370014319,1751832646895,-376.0,0.00019985,2]
[370014320,1751832646905,-460.0,0.00019995,2]
[370014321,1751832646914,-460.0,0.00019995,2]
[370014322,1751832646923,-460.0,0.00019995,2]
[370014323,1751832646933,-1283.92,0.00019995,2]
[370014324,1751832646943,-748.45,0.00019995,2]
[370014325,1751832646952,-2166.15,0.00019995,2]
[370014326,1751832646961,-620.0,0.00019995,2]
[370014327,1751832647010,-9508.84842831,0.0002,2]
[370014328,1751832647020,-500.0,0.0002,2]
[370014329,1751832647029,-7776.66986927,0.0002,2]
[370014330,1751832708557,24900.0,0.00016672,2]
[370014331,1751832752104,500.0,0.00016055,2]
[370014332,1751832882970,249.47772595,0.00016748,2]
[370014333,1751833081940,266.64245492,0.00016801,2]
[370014334,1751833089275,218.29301018,0.00016748,2]
[370014335,1751833294792,191.00638396,0.00016748,2]
[370014336,1751833298993,173.53746,0.00016354,2]
[370014337,1751833452392,500.0,0.00016055,2]
[370014338,1751833500031,167.13058593,0.00016747,2]
[370014340,1751833596171,-154.71560272,0.00016845,2]
[370014342,1751833678829,24900.0,0.00015916,2]
[370014343,1751833705215,167.1305859,0.00016747,2]
[370014917,1751833837639,-284.91981695,0.00016823,2]
[370014920,1751833837650,-70.88018105,0.00016844,2]
[370014924,1751833837750,-229.11981895,0.00016844,2]
[370014926,1751833837759,-1200.0,0.00016844,2]
[370014928,1751833837768,-274.0,0.00016844,2]
[370014930,1751833837778,-300.0,0.00016844,2]
[370014932,1751833837787,-310.83758491,0.00016845,2]
[370014934,1751833837796,-460.0,0.00016845,2]
[370014936,1751833837806,-505.27,0.00016846,2]
[370014938,1751833837816,-460.0,0.00016846,2]
[370014940,1751833837827,-460.0,0.00016846,2]
[370014942,1751833837836,-460.0,0.00016846,2]
[370014944,1751833837845,-390.85349495,0.00016846,2]
[370014946,1751833837854,-460.0,0.00016846,2]
[370014948,1751833837863,-441.785092,0.00016846,2]
[370014949,1751833837872,-460.0,0.00016846,2]
[370014952,1751833837882,-460.0,0.00016846,2]
[370014955,1751833837891,-460.0,0.00016846,2]
[370014958,1751833837900,-460.0,0.00016846,2]
[370014961,1751833837909,-584.01,0.00016846,2]
[370014962,1751833837918,-460.0,0.00016846,2]
[370014964,1751833837927,-460.0,0.00016846,2]
[370014966,1751833837937,-500.0,0.00016846,2]
[370014968,1751833837946,-460.0,0.00016846,2]
[370014971,1751833837956,-1179.67,0.00016846,2]
[370014974,1751833837965,-460.0,0.00016846,2]
[370014977,1751833837974,-1342.07,0.00016846,2]
[370014980,1751833837983,-461.01,0.00016846,2]
[370014982,1751833837993,-460.0,0.00016846,2]
[370014984,1751833838002,-955.53,0.00016846,2]
[370014985,1751833838011,-460.0,0.00016846,2]
[370014986,1751833838021,-460.0,0.00016846,2]
[370014987,1751833838031,-187.48178197,0.00016846,2]
[370014988,1751833838040,-1164.37,0.00016846,2]
[370014989,1751833838050,-460.0,0.00016846,2]
[370014990,1751833838059,-460.0,0.00016846,2]
[370014991,1751833838068,-851.11,0.00016846,2]
[370014992,1751833838078,-1291.98,0.00016846,2]
[370014993,1751833838087,-460.0,0.00016846,2]
[370014994,1751833838096,-460.0,0.00016846,2]
[370014995,1751833838105,-460.0,0.00016846,2]
[370014996,1751833838115,-908.1,0.00016846,2]
[370014997,1751833838124,-460.0,0.00016846,2]
[370014998,1751833838133,-754.55,0.00016846,2]
[370014999,1751833838142,-460.0,0.00016846,2]
[370015000,1751833838152,-460.0,0.00016846,2]
[370015001,1751833838162,-460.0,0.00016846,2]
[370015002,1751833838171,-460.0,0.00016846,2]
[370015003,1751833838181,-460.0,0.00016846,2]
[370015004,1751833838190,-460.0,0.00016846,2]
[370015005,1751833838199,-460.0,0.00016846,2]
[370015006,1751833838208,-460.0,0.00016846,2]
[370015007,1751833838218,-69.73810188,0.00016846,2]
[370015008,1751833838230,-426.75189812,0.00016846,2]
[370015009,1751833838241,-675.5,0.00016846,2]
[370015010,1751833838251,-460.0,0.00016846,2]
[370015011,1751833838260,-460.0,0.00016846,2]
[370015012,1751833838269,-8686.47034323,0.00016846,2]
[370015013,1751833838281,-538.8155538,0.00016846,2]
[370015014,1751833838404,-5971.60465169,0.00016846,2]
[370015303,1751833842738,-460.0,0.00016846,2]
[370015304,1751833842748,-1423.84,0.00016846,2]
[370015305,1751833842758,-10972.71759637,0.00016846,2]
[370015306,1751833842767,-8.97379356,0.00016847,2]
[370015309,1751833845742,-451.02620644,0.00016847,2]
[370015310,1751833845752,-461.59009056,0.00016847,2]
[370015311,1751833845761,-457.05292024,0.00016847,2]
[370015312,1751833845771,-460.0,0.00016847,2]
[370015313,1751833845780,-460.0,0.00016847,2]
[370015314,1751833845790,-460.0,0.00016847,2]
[370015315,1751833845799,-460.0,0.00016847,2]
[370015317,1751833845808,-460.0,0.00016847,2]
[370015319,1751833845819,-605.92,0.00016847,2]
[370015320,1751833845829,-460.0,0.00016847,2]
[370015321,1751833845838,-460.0,0.00016847,2]
[370015322,1751833845847,-460.0,0.00016847,2]
[370015323,1751833845857,-460.0,0.00016847,2]
[370015324,1751833845866,-109.80119659,0.00016847,2]
[370015325,1751833845877,-300.36600467,0.00016847,2]
[370015326,1751833845889,-49.83279874,0.00016847,2]
[370015327,1751833845898,-460.0,0.00016847,2]
[370015328,1751833845908,-460.0,0.00016847,2]
[370015329,1751833845918,-270.17270372,0.00016847,2]
[370015330,1751833845927,-460.0,0.00016847,2]
[370015331,1751833845937,-460.0,0.00016847,2]
[370015332,1751833845947,-460.0,0.00016847,2]
[370015333,1751833845957,-460.0,0.00016847,2]
[370015334,1751833845967,-460.0,0.00016847,2]
[370015335,1751833845976,-460.0,0.00016847,2]
[370015336,1751833845986,-460.0,0.00016847,2]
[370015337,1751833845995,-460.0,0.00016847,2]
[370015338,1751833846005,-460.0,0.00016847,2]
[370015339,1751833846014,-460.0,0.00016847,2]
[370015340,1751833846023,-158.42129224,0.00016847,2]
[370015341,1751833846033,-515.09853872,0.00016847,2]
[370015342,1751833846043,-463.35143911,0.00016847,2]
[370015343,1751833846052,-508.83838098,0.00016847,2]
[370015344,1751833846209,-461.42528736,0.00016847,2]
[370015345,1751833846220,-460.0,0.00016847,2]
[370015346,1751833846230,-460.0,0.00016847,2]
[370015347,1751833846239,-460.0,0.00016847,2]
[370015348,1751833846249,-154.92080253,0.00016847,2]
[370015349,1751833846259,-460.0,0.00016847,2]
[370015350,1751833846268,-460.0,0.00016847,2]
[370015351,1751833846278,-460.0,0.00016847,2]
[370015352,1751833846288,-460.0,0.00016847,2]
[370015353,1751833846297,-460.0,0.00016847,2]
[370015354,1751833846306,-460.0,0.00016847,2]
[370015355,1751833846316,-460.0,0.00016847,2]
[370015356,1751833846325,-460.0,0.00016847,2]
[370015357,1751833846334,-460.0,0.00016847,2]
[370015358,1751833846348,-323.42500665,0.00016847,2]
[370015359,1751833846357,-460.0,0.00016847,2]
[370015360,1751833846367,-475.56,0.00016847,2]
[370015361,1751833846376,-2089.43,0.00016847,2]
[370015362,1751833846385,-460.0,0.00016847,2]
[370015363,1751833846394,-568.72,0.00016847,2]
[370015364,1751833846404,-460.0,0.00016847,2]
[370015365,1751833846413,-558.08,0.00016847,2]
[370015366,1751833846423,-650.42,0.00016847,2]
[370015367,1751833846432,-460.0,0.00016847,2]
[370015368,1751833846441,-460.0,0.00016847,2]
[370015369,1751833846450,-1404.05,0.00016847,2]
[370015370,1751833846459,-500.0,0.00016847,2]
[370015371,1751833846469,-460.0,0.00016848,2]
[370015372,1751833846478,-460.0,0.0001712,2]
[370015373,1751833846488,-460.0,0.0001712,2]
[370015374,1751833846497,-1179.67,0.0001712,2]
[370015375,1751833846506,-955.53,0.0001712,2]
[370015376,1751833846515,-1164.37,0.0001712,2]
[370015377,1751833846524,-460.0,0.0001712,2]
[370015378,1751833846534,-851.11,0.0001712,2]
[370015379,1751833846543,-1291.98,0.0001712,2]
[370015380,1751833846552,-460.0,0.0001712,2]
[370015381,1751833846562,-908.1,0.0001712,2]
[370015382,1751833846572,-754.55,0.0001712,2]
[370015383,1751833846581,-460.0,0.0001712,2]
[370015384,1751833846591,-460.0,0.0001712,2]
[370015385,1751833846603,-460.0,0.0001712,2]
[370015386,1751833846612,-460.0,0.0001712,2]
[370015387,1751833846621,-496.49,0.0001712,2]
[370015388,1751833846630,-675.5,0.0001712,2]
[370015389,1751833846639,-460.0,0.0001712,2]
[370015390,1751833846649,-460.0,0.0001712,2]
[370015391,1751833846659,-1423.84,0.0001712,2]
[370015392,1751833846668,-500.0,0.0001712,2]
[370015393,1751833846678,-500.0,0.0001712,2]
[370015394,1751833846687,-500.0,0.0001712,2]
[370015395,1751833846699,-500.0,0.0001712,2]
[370015396,1751833846708,-500.0,0.0001712,2]
[370015397,1751833846718,-551.18632684,0.0001712,2]
[370015398,1751833846727,-500.0,0.0001712,2]
[370015399,1751833846736,-300.6679183,0.0001712,2]
[370015400,1751833846745,-289.23695873,0.0001712,2]
[370015401,1751833846755,-500.0,0.0001712,2]
[370015402,1751833846764,-369.04750587,0.0001712,2]
[370015403,1751833846774,-500.0,0.0001712,2]
[370015404,1751833846786,-500.0,0.0001712,2]
[370015405,1751833846797,-429.79450631,0.0001712,2]
[370015406,1751833846806,-500.0,0.0001712,2]
[370015407,1751833846817,-500.0,0.0001712,2]
[370015408,1751833846828,-500.0,0.0001712,2]
[370015409,1751833846838,-500.0,0.0001712,2]
[370015410,1751833846847,-500.0,0.0001712,2]
[370015411,1751833846856,-500.0,0.0001712,2]
[370015412,1751833846866,-500.0,0.0001712,2]
[370015413,1751833846875,-500.0,0.0001712,2]
[370015414,1751833846884,-212.91269063,0.0001712,2]
[370015415,1751833846895,-650.55620881,0.0001712,2]
[370015416,1751833846905,-500.0,0.0001712,2]
[370015417,1751833846915,-500.0,0.0001712,2]
[370015418,1751833846925,-500.0,0.0001712,2]
[370015419,1751833846935,-500.0,0.0001712,2]
[370015420,1751833846945,-500.0,0.0001712,2]
[370015421,1751833846955,-500.0,0.0001712,2]
[370015422,1751833846964,-500.0,0.0001712,2]
[370015423,1751833846974,-500.0,0.0001712,2]
[370015424,1751833846983,-500.0,0.0001712,2]
[370015425,1751833846993,-484.22130988,0.0001712,2]
[370015426,1751833847003,-242.79707853,0.00017121,2]
[370015427,1751833847013,-460.0,0.00017121,2]
[370015428,1751833847022,-460.0,0.00017121,2]
[370015429,1751833847032,-460.0,0.00017121,2]
[370015430,1751833847041,-460.0,0.00017121,2]
[370015431,1751833847051,-460.0,0.00017121,2]
[370015432,1751833847060,-475.56,0.00017121,2]
[370015433,1751833847070,-2089.43,0.00017121,2]
[370015434,1751833847080,-568.72,0.00017121,2]
[370015435,1751833847089,-558.08,0.00017121,2]
[370015436,1751833847099,-650.42,0.00017121,2]
[370015437,1751833847108,-460.0,0.00017121,2]
[370015438,1751833847118,-460.0,0.00017121,2]
[370015439,1751833847129,-1404.05,0.00017121,2]
[370015440,1751833847138,-465.13405533,0.00017121,2]
[370015441,1751833847148,-460.0,0.00017122,2]
[370015442,1751833847158,-460.0,0.00017392,2]
[370015443,1751833847168,-460.0,0.00017392,2]
[370015444,1751833847177,-762.09,0.00017392,2]
[370015445,1751833847187,-2441.27,0.00017392,2]
[370015446,1751833847196,-632.92,0.00017392,2]
[370015447,1751833847206,-460.0,0.00017394,2]
[370015448,1751833847215,-460.0,0.00017394,2]
[370015449,1751833847225,-1179.67,0.00017394,2]
[370015450,1751833847235,-955.53,0.00017394,2]
[370015451,1751833847244,-1164.37,0.00017394,2]
[370015452,1751833847253,-460.0,0.00017394,2]
[370015453,1751833847262,-851.11,0.00017394,2]
[370015454,1751833847271,-1291.98,0.00017394,2]
[370015455,1751833847281,-460.0,0.00017394,2]
[370015456,1751833847290,-908.1,0.00017394,2]
[370015457,1751833847299,-754.55,0.00017394,2]
[370015458,1751833847309,-460.0,0.00017394,2]
[370015459,1751833847318,-460.0,0.00017394,2]
[370015460,1751833847327,-462.43569344,0.00017394,2]
[370015461,1751833847336,-460.0,0.00017394,2]
[370015462,1751833847346,-496.49,0.00017394,2]
[370015463,1751833847355,-675.5,0.00017394,2]
[370015464,1751833847365,-460.0,0.00017394,2]
[370015465,1751833847374,-460.0,0.00017394,2]
[370015466,1751833847383,-1423.84,0.00017394,2]
[370015467,1751833847392,-460.0,0.00017395,2]
[370015468,1751833847402,-460.0,0.00017395,2]
[370015469,1751833847412,-460.0,0.00017395,2]
[370015470,1751833847421,-460.0,0.00017395,2]
[370015471,1751833847430,-460.0,0.00017395,2]
[370015472,1751833847440,-475.56,0.00017395,2]
[370015473,1751833847450,-2089.43,0.00017395,2]
[370015474,1751833847459,-568.72,0.00017395,2]
[370015475,1751833847469,-558.08,0.00017395,2]
[370015476,1751833847479,-650.42,0.00017395,2]
[370015477,1751833847489,-460.0,0.00017395,2]
[370015478,1751833847499,-460.0,0.00017395,2]
[370015479,1751833847508,-1404.05,0.00017395,2]
[370015480,1751833847518,-460.0,0.00017666,2]
[370015481,1751833847528,-460.0,0.00017666,2]
[370015482,1751833847538,-762.09,0.00017666,2]
[370015483,1751833847548,-2441.27,0.00017666,2]
[370015484,1751833847558,-632.92,0.00017666,2]
[370015485,1751833847567,-460.0,0.00017668,2]
[370015486,1751833847577,-172.95,0.00017668,2]
[370015487,1751833847586,-1179.67,0.00017668,2]
[370015488,1751833847596,-955.53,0.00017668,2]
[370015489,1751833847605,-1164.37,0.00017668,2]
[370015490,1751833847614,-460.0,0.00017668,2]
[370015491,1751833847623,-851.11,0.00017668,2]
[370015492,1751833847633,-1291.98,0.00017668,2]
[370015493,1751833847642,-460.0,0.00017668,2]
[370015494,1751833847652,-908.1,0.00017668,2]
[370015495,1751833847661,-754.55,0.00017668,2]
[370015496,1751833847670,-460.0,0.00017668,2]
[370015497,1751833847679,-203.27085941,0.00017668,2]
[370015498,1751833847688,-460.0,0.00017668,2]
[370015499,1751833847698,-496.49,0.00017668,2]
[370015500,1751833847707,-675.5,0.00017668,2]
[370015501,1751833847716,-460.0,0.00017668,2]
[370015502,1751833847725,-460.0,0.00017668,2]
[370015503,1751833847735,-1423.84,0.00017668,2]
[370015504,1751833847743,-460.0,0.00017669,2]
[370015505,1751833847753,-393.09835549,0.00017669,2]
[370015506,1751833847762,-460.0,0.00017669,2]
[370015507,1751833847771,-460.0,0.00017669,2]
[370015508,1751833847780,-460.0,0.00017669,2]
[370015509,1751833847789,-475.56,0.00017669,2]
[370015510,1751833847798,-2089.43,0.00017669,2]
[370015511,1751833847807,-568.72,0.00017669,2]
[370015512,1751833847816,-558.08,0.00017669,2]
[370015513,1751833847826,-650.42,0.00017669,2]
[370015514,1751833847835,-460.0,0.00017669,2]
[370015515,1751833847844,-460.0,0.00017669,2]
[370015516,1751833847853,-500.0,0.00017719,2]
[370015517,1751833847862,-500.0,0.0001781,2]
[370015518,1751833847872,-504.94786744,0.0001781,2]
[370015519,1751833847882,-500.0,0.0001781,2]
[370015520,1751833847891,-500.0,0.0001781,2]
[370015521,1751833847900,-160.0,0.00017867,2]
[370015522,1751833847910,-214.03875559,0.00017867,2]
[370015523,1751833847920,-837.69501035,0.00017867,2]
[370015524,1751833847929,-12582.33653824,0.00017867,2]
[370015525,1751833847939,-160.0,0.00017867,2]
[370015526,1751833847948,-230.45878613,0.00017867,2]
[370015527,1751833847957,-160.0,0.00017867,2]
[370015528,1751833847967,-160.0,0.00017867,2]
[370015529,1751833847977,-215.18120504,0.00017867,2]
[370015530,1751833847986,-848.15551661,0.00017867,2]
[370015531,1751833847995,-160.0,0.00017867,2]
[370015532,1751833848004,-160.0,0.00017868,2]
[370015533,1751833848014,-1753.08350022,0.000179,2]
[370015534,1751833848023,-460.0,0.0001794,2]
[370015535,1751833848033,-460.0,0.0001794,2]
[370015536,1751833848042,-762.09,0.0001794,2]
[370015537,1751833848052,-2441.27,0.0001794,2]
[370015538,1751833848061,-632.92,0.0001794,2]
[370015539,1751833848071,-460.0,0.00017942,2]
[370015540,1751833848080,-1179.67,0.00017942,2]
[370015541,1751833848089,-955.53,0.00017942,2]
[370015542,1751833848098,-1164.37,0.00017942,2]
[370015543,1751833848108,-460.0,0.00017942,2]
[370015544,1751833848117,-851.11,0.00017942,2]
[370015545,1751833848127,-1291.98,0.00017942,2]
[370015546,1751833848136,-460.0,0.00017942,2]
[370015547,1751833848145,-908.1,0.00017942,2]
[370015548,1751833848155,-754.55,0.00017942,2]
[370015549,1751833848164,-460.0,0.00017942,2]
[370015550,1751833848173,-460.0,0.00017942,2]
[370015551,1751833848182,-496.49,0.00017942,2]
[370015552,1751833848192,-675.5,0.00017942,2]
[370015553,1751833848201,-344.72764828,0.00017942,2]
[370015554,1751833848210,-460.0,0.00017942,2]
[370015555,1751833848219,-1423.84,0.00017942,2]
[370015556,1751833848229,-460.0,0.00017943,2]
[370015557,1751833848238,-460.0,0.00017943,2]
[370015558,1751833848248,-460.0,0.00017943,2]
[370015559,1751833848257,-460.0,0.00017943,2]
[370015560,1751833848266,-475.56,0.00017943,2]
[370015561,1751833848275,-2089.43,0.00017943,2]
[370015562,1751833848284,-568.72,0.00017943,2]
[370015563,1751833848293,-558.08,0.00017943,2]
[370015564,1751833848303,-650.42,0.00017943,2]
[370015565,1751833848312,-460.0,0.00017943,2]
[370015566,1751833848322,-460.0,0.00017943,2]
[370015567,1751833848332,-500.0,0.0001795,2]
[370015568,1751833848342,-500.0,0.00017973,2]
[370015569,1751833848351,-500.0,0.00017973,2]
[370015570,1751833848360,-500.0,0.00017973,2]
[370015571,1751833848369,-500.0,0.00017973,2]
[370015572,1751833848378,-500.0,0.00017973,2]
[370015573,1751833848387,-500.0,0.00017973,2]
[370015574,1751833848396,-500.0,0.00017973,2]
[370015575,1751833848406,-500.0,0.00017973,2]
[370015576,1751833848415,-500.0,0.00017973,2]
[370015577,1751833848424,-500.43844311,0.00017973,2]
[370015578,1751833848434,-500.0,0.00017973,2]
[370015579,1751833848443,-500.0,0.00017973,2]
[370015580,1751833848452,-157.10091286,0.00017973,2]
[370015581,1751833848461,-500.0,0.00017973,2]
[370015582,1751833848471,-286.18,0.00018,2]
[370015583,1751833848480,-286.18,0.00018,2]
[370015584,1751833848489,-286.18,0.00018,2]
[370015585,1751833848499,-32340.0,0.00018,2]
[370015586,1751833848508,-53549.79460234,0.00018,2]
[370015587,1751833893843,854.490059,0.00013699,2]
[370015589,1751833983413,1013.36407657,0.00016801,2]
[370015590,1751834115829,243.5933818,0.00016746,2]
[370015591,1751834321075,213.14420911,0.00016745,2]
[370015592,1751834395395,221.00577221,0.00016801,2]
[370015594,1751834527161,186.50118298,0.00016745,2]
[370015595,1751834602435,220.312626,0.00015914,2]
[370015596,1751834732970,163.18853509,0.00016745,2]
[370015597,1751834738322,24900.0,0.00015845,2]
[370015598,1751834768319,500.0,0.00014411,2]
[370015599,1751834769939,500.0,0.00015781,2]
[370015600,1751834793106,-151.0,0.00016835,2]
[370015601,1751834793127,-0.97423083,0.00016842,2]
[370015602,1751834926533,346.24,0.00016801,2]
[370015603,1751834938382,163.18853506,0.00016744,2]
[370015635,1751835032054,-171.0,0.00016841,2]
[370015637,1751835032064,-1200.0,0.00016841,2]
[370015639,1751835032075,-300.0,0.00016841,2]
[370015641,1751835032085,-460.0,0.00016842,2]
[370015643,1751835032094,-460.0,0.00016842,2]
[370015645,1751835032104,-966.68,0.00016842,2]
[370015647,1751835032113,-460.0,0.00016842,2]
[370015649,1751835032123,-281.845,0.00016842,2]
[370015651,1751835032134,-1105.145,0.00016842,2]
[370015653,1751835032144,-460.0,0.00016843,2]
[370015655,1751835032154,-150.375,0.00016843,2]
[370015659,1751835032179,-142.97708569,0.00016843,2]
[370015661,1751835032188,-460.0,0.00016843,2]
[370015663,1751835032198,-460.0,0.00016843,2]
[370015665,1751835032207,-460.0,0.00016843,2]
[370015667,1751835032216,-460.0,0.00016843,2]
[370015669,1751835032226,-460.0,0.00016843,2]
[370015672,1751835032237,-487.68893427,0.00016843,2]
[370015674,1751835032246,-460.0,0.00016843,2]
[370015676,1751835032255,-460.0,0.00016843,2]
[370015678,1751835032265,-460.0,0.00016843,2]
[370015680,1751835032274,-536.66,0.00016843,2]
[370015682,1751835032283,-460.0,0.00016843,2]
[370015684,1751835032292,-101.35536003,0.00016843,2]
[370015792,1751835037906,-542.85,0.00016842,2]
[370015793,1751835037916,-241.19392394,0.00016843,2]
[370015794,1751835037926,-460.0,0.00016843,2]
[370015795,1751835037936,-460.0,0.00016843,2]
[370015796,1751835037945,-460.0,0.00016843,2]
[370015797,1751835037955,-460.0,0.00016843,2]
[370015798,1751835037964,-271.6453915,0.00016843,2]
[370015799,1751835037973,-460.0,0.00016843,2]
[370015800,1751835037983,-460.0,0.00016843,2]
[370015801,1751835037992,-460.0,0.00016843,2]
[370015803,1751835038002,-460.0,0.00016843,2]
[370015805,1751835038013,-460.0,0.00016843,2]
[370015807,1751835038022,-460.0,0.00016843,2]
[370015809,1751835038031,-460.0,0.00016843,2]
[370015811,1751835038041,-460.0,0.00016843,2]
[370015813,1751835038050,-216.22135587,0.00016843,2]
[370015816,1751835038060,-460.0,0.00016843,2]
[370015818,1751835038069,-103.31816095,0.00016843,2]
[370015869,1751835038408,-356.68183905,0.00016843,2]
[370015872,1751835038419,-360.0,0.00016843,2]
[370015874,1751835038429,-1275.66,0.00016843,2]
[370015876,1751835038438,-1400.55,0.00016843,2]
[370015878,1751835038448,-460.0,0.00016843,2]
[370015880,1751835038457,-460.0,0.00016843,2]
[370015882,1751835038466,-771.03,0.00016843,2]
[370015884,1751835038475,-460.0,0.00016843,2]
[370015886,1751835038485,-460.0,0.00016843,2]
[370015888,1751835038494,-460.0,0.00016843,2]
[370015890,1751835038503,-591.79,0.00016843,2]
[370015892,1751835038512,-460.0,0.00016843,2]
[370015894,1751835038522,-6060.62857748,0.00016843,2]
[370015896,1751835038532,-460.0,0.00016844,2]
[370015898,1751835038541,-460.0,0.00016844,2]
[370015900,1751835038550,-460.0,0.00016844,2]
[370015902,1751835038559,-460.0,0.00016844,2]